[Event "Romanian Superleague 2022"]
[Site "Oradea"]
[Date "2022.09.24"]
[Round "4.2"]
[White "Grigore, George-Gabriel"]
[Black "Ionescu, Constantin"]
[Result "1-0"]
[ECO "E39"]
[WhiteElo "2455"]
[BlackElo "2415"]
[Annotator "TA"]
[PlyCount "101"]
[EventDate "2022.09.21"]
[EventType "team-tourn"]
[EventCountry "ROU"]
[SourceTitle "playchess.com"]
[Source "ChessBase"]
[SourceQuality "1"]
[TimeControl "40/5400+30:1800+30"]

{[%evp 17,101,18,10,18,24,18,17,15,22,22,13,10,17,6,5,15,20,18,19,22,49,49,52,40,43,52,45,0,0,0,0,0,0,0,26,31,28,33,22,18,25,16,13,22,51,40,57,36,100,80,94,33,106,87,220,193,217,155,234,214,260,0,384,376,380,372,428,414,1031,1017,1006,936,1307,817,817,811,810,761,848,838,810,782,1691,1608,1535,1414]} 1. d4 {[%emt 0:00:06]} Nf6 {[%emt 0:00:07]} 2. c4 {[%emt 0:00:07]} e6 {[%emt 0:00:07]} 3. Nc3 {[%emt 0:00:13]} Bb4 {[%emt 0:00:08]} 4. Qc2 {[%emt 0:00:08]} c5 {[%emt 0:00:09]} 5. dxc5 {[%emt 0:00:14]} O-O {[%emt 0:00:08]} 6. a3 {[%emt 0:00:21]} Bxc5 {[%emt 0:00:08]} 7. Nf3 {[%emt 0:00:11]} b6 {[%emt 0:00:59]} 8. Bg5 {[%emt 0:00:23]} Bb7 {[%emt 0:00:15]} 9. e3 {[%emt 0:00:50]} Be7 {[%emt 0:00:28]} 10. Be2 {[%emt 0:01:41] E39: Nimzo-Indian: Classical: 4...c5 5 dxc5 0-0.} d6 {[%emt 0:04:21]} 11. O-O {[%emt 0:03:41]} Nbd7 {[%emt 0:00:52]} 12. Rfd1 {[%emt 0:15:18] The position is equal.} a6 {[%emt 0:01:32]} 13. Bf4 {[%emt 0:12:43]} Qc7 {[%emt 0:05:24]} 14. h3 {[%emt 0:04:35]} Rfd8 {[%emt 0:00:50]} 15. Rac1 {[%emt 0:06:23]} Rac8 {[%emt 0:00:11]} 16. b4 {[%emt 0:03:53]} h6 {[%emt 0:02:27]} 17. Qb1 {[%emt 0:08:47]} Qb8 {[%emt 0:05:00]} 18. e4 {[%emt 0:06:21] [#]} Ne5 $146 {[%emt 0:06:27]} ({Predecessor:} 18... Nf8 19. Be3 N6d7 20. Nd4 Qa8 21. f3 Ng6 22. g3 Qb8 {½-½ (34) Tesic,D (2390)-Kovacevic,A (2575) Neum 2011}) 19. Nxe5 {[%emt 0:01:26]} dxe5 {[%emt 0:00:08]} 20. Rxd8+ {[%emt 0:01:06]} Rxd8 {[%emt 0:02:25]} 21. Be3 {[%emt 0:00:14]} Bc6 {[%emt 0:00:23]} 22. b5 {[%emt 0:14:51]} axb5 {[%emt 0:01:18]} 23. cxb5 {[%emt 0:00:15]} Ba8 {[%emt 0:00:09]} 24. a4 {[%emt 0:00:08]} Ba3 {[%emt 0:06:55]} 25. Rd1 {[%emt 0:02:27]} Rc8 {[%emt 0:05:39]} 26. Qb3 {[%emt 0:00:58]} Bc5 {[%emt 0:01:19]} 27. Bxc5 {[%emt 0:00:28]} Rxc5 {[%emt 0:00:08]} 28. a5 $36 {[%emt 0:06:01][%mdl 2048] White has some pressure.} bxa5 {[%emt 0:06:47]} (28... Nxe4 $2 29. Na4 $16 (29. Nxe4 Bxe4 30. Qe3 Bd5 $11)) 29. Na4 {[%emt 0:00:28]} Rc8 {[%emt 0:02:39]} 30. f3 {[%emt 0:01:17][%mdl 1024] White has compensation.} Bb7 {[%emt 0:03:22]} 31. b6 {[%emt 0:04:59]} Ne8 {[%emt 0:06:11]} 32. Qb2 {[%emt 0:02:15]} h5 {[%emt 0:13:19]} (32... f5 $14) 33. Kh1 $16 {[%emt 0:00:52] White has more active pieces.} h4 {[%emt 0:00:24]} 34. Bf1 {[%emt 0:00:32]} (34. Kh2 $16) 34... Nf6 {[%emt 0:00:28]} (34... Rd8 $1 $14 35. Rxd8 Qxd8) 35. Bb5 {[%emt 0:00:38]} Nh5 {[%emt 0:02:32] [#]} (35... Rd8 $16 36. Rxd8+ Qxd8) 36. Qd2 $1 $18 {[%emt 0:01:03]} Nf6 {[%emt 0:04:13]} 37. Qxa5 {[%emt 0:00:46]} Rc2 {[%emt 0:00:43]} (37... Rd8 $16 {keeps fighting.} 38. Rc1 Qd6) 38. Qb4 {[%emt 0:01:26] aiming for Qe7.} Kh7 {[%emt 0:01:48]} 39. Qe7 $2 {[%emt 0:00:41]} (39. Qe1 $18) 39... Kg6 $2 {[%emt 0:02:41][%mdl 8192]} (39... Qc8 $1 $11) 40. Rd8 {[%emt 0:00:00]} Rc8 {[%emt 0:00:00]} 41. Rxc8 {[%emt 0:03:48]} Qxc8 {[%emt 0:01:18]} 42. Nc5 {[%emt 0:04:52]} Qa8 {[%emt 0:02:40]} (42... Ba8 $142 43. Qc7 Qf8) 43. Nxb7 {[%emt 0:01:13] White is clearly winning.} Qa1+ {[%emt 0:00:09]} 44. Kh2 {[%emt 0:00:06] Hoping for Nd8.} Qe1 {[%emt 0:00:09]} 45. Qc5 {[%emt 0:03:04]} Qg3+ {[%emt 0:00:24]} 46. Kg1 {[%emt 0:04:12] Black must now prevent Nd6.} Qe1+ {[%emt 0:01:48] [#]} 47. Bf1 $1 {[%emt 0:01:03]} Nh5 {[%emt 0:00:37]} 48. Qf2 {[%emt 0:00:47]} Qb4 {[%emt 0:00:24] [#]} 49. Na5 $1 {[%emt 0:04:32][%mdl 512]} Qxa5 {[%emt 0:02:42]} (49... Qb1 50. Nc4) 50. b7 {[%emt 0:00:09]} Qc7 {[%emt 0:01:02]} 51. Qa7 {[%emt 0:00:12] Weighted Error Value: White=0.17 (very precise) /Black=0.31} 1-0

[Event "Romanian Superleague 2022"]
[Site "Oradea"]
[Date "2022.09.24"]
[Round "4.3"]
[White "Soltanici, Ruslan"]
[Black "Istratescu, Andrei"]
[Result "1/2-1/2"]
[ECO "B13"]
[WhiteElo "2333"]
[BlackElo "2408"]
[Annotator "TA"]
[PlyCount "89"]
[EventDate "2022.09.21"]
[EventType "team-tourn"]
[EventCountry "ROU"]
[SourceTitle "playchess.com"]
[Source "ChessBase"]
[SourceQuality "1"]
[TimeControl "40/5400+30:1800+30"]

{[%evp 35,89,0,31,0,0,0,0,0,-6,-10,0,0,0,0,0,0,0,0,0,0,16,16,16,16,16,16,16,23,26,16,25,16,16,16,16,16,16,16,16,8,16,16,16,16,16,16,20,28,28,28,35,0,79,16,16,0]} 1. e4 {[%emt 0:00:05]} c6 {[%emt 0:00:17]} 2. d4 {[%emt 0:00:41]} d5 {[%emt 0:00:06]} 3. exd5 {[%emt 0:00:37]} cxd5 {[%emt 0:00:33]} 4. c4 {[%emt 0:00:19]} Nf6 {[%emt 0:00:52]} 5. Nc3 {[%emt 0:00:17]} Nc6 {[%emt 0:03:20]} 6. Nf3 {[%emt 0:09:43]} Bg4 {[%emt 0:02:17]} 7. cxd5 {[%emt 0:00:46]} Nxd5 {[%emt 0:01:01]} 8. Qb3 {[%emt 0:00:18]} Bxf3 {[%emt 0:00:22]} 9. gxf3 {[%emt 0:00:12]} e6 {[%emt 0:03:00]} 10. Qxb7 {[%emt 0:01:26]} Nxd4 {[%emt 0:02:34]} 11. Bb5+ {[%emt 0:02:09]} Nxb5 {[%emt 0:00:51]} 12. Qc6+ {[%emt 0:00:11]} Ke7 {[%emt 0:00:04][%cal Be8e7,Be7e6,Be6f7][%mdl 32]} 13. Qxb5 {[%emt 0:00:25]} Qd7 {[%emt 0:05:56]} 14. Nxd5+ {[%emt 0:04:22]} Qxd5 {[%emt 0:03:06]} 15. Bg5+ {[%emt 0:01:02]} f6 {[%emt 0:00:19]} 16. Qxd5 {[%emt 0:00:14]} exd5 {[%emt 0:00:53]} 17. Be3 {[%emt 0:00:09]} Ke6 {[%emt 0:00:04]} 18. O-O-O {[%emt 0:00:18]} Bb4 {[%emt 0:36:25]} 19. Kb1 {[%emt 0:11:46] B13: Caro-Kann: Exchange Variation and Panov-Botvinnik Attack.} (19. a3 $5 {[%cal Ra3b4]} Rhc8+ 20. Kb1 $11) 19... Rhd8 {[%emt 0:05:39]} 20. Rd3 {[%emt 0:03:21]} Rd7 {[%emt 0:18:20]} 21. Rc1 {[%emt 0:08:01] Against Rc8} Rad8 {[%emt 0:02:57]} 22. Rc6+ {[%emt 0:04:10] [#]} Kf7 $146 {[%emt 0:00:46]} ({Predecessor:} 22... Rd6 23. Rc7 d4 24. Bf4 R6d7 25. Rc4 Be1 26. Bg3 Ba5 27. b4 Bb6 28. a4 Kd5 {1-0 (59) Andreikin,D (2625)-Popov,V (2570) Voronezh 2009}) 23. a3 {[%emt 0:10:25]} Bd6 {[%emt 0:02:29]} 24. Rxd5 {[%emt 0:03:28]} Bxh2 {[%emt 0:00:23]} 25. Rh5 {[%emt 0:00:16][%csl LRh2,LRh7]} Be5 {[%emt 0:00:21]} 26. f4 {[%emt 0:00:10]} Bd4 {[%emt 0:00:12]} ({Resist} 26... Rd1+ 27. Kc2 Bb8 28. Rxh7 $16) 27. Rxh7 {[%emt 0:01:59]} Bxe3 {[%emt 0:01:25]} 28. fxe3 $11 {[%emt 0:00:31][%mdl 4096] Endgame KRR-KRR} Kg6 {[%emt 0:00:28]} 29. Rh3 {[%emt 0:10:38]} Kf5 {[%emt 0:00:10]} 30. Rg3 {[%emt 0:01:20]} g5 {[%emt 0:02:49]} 31. fxg5 {[%emt 0:04:58]} fxg5 {[%emt 0:00:00]} 32. Rc5+ {[%emt 0:02:37]} Rd5 {[%emt 0:00:05]} 33. e4+ {[%emt 0:00:14]} Kxe4 {[%emt 0:00:04]} 34. Rxg5 {[%emt 0:00:05]} Kd4 {[%emt 0:03:50] Against Rc4+} 35. Rgxd5+ {[%emt 0:09:59]} Rxd5 {[%emt 0:00:29] KR-KR} 36. Rc7 {[%emt 0:00:33]} a5 {[%emt 0:00:42]} 37. b3 {[%emt 0:00:38]} Rh5 {[%emt 0:01:15]} 38. Rc4+ {[%emt 0:00:25]} Kd3 {[%emt 0:00:30]} 39. a4 {[%emt 0:00:25]} Rg5 {[%emt 0:03:28]} 40. Kb2 {[%emt 0:00:00]} Rg2+ {[%emt 0:00:00]} 41. Ka3 {[%emt 0:01:07] [#] Black must now prevent Rc5.} Rg5 {[%emt 0:00:38] Against Rc5} 42. Rh4 {[%emt 0:10:15]} Kc3 {[%emt 0:00:40]} 43. Rc4+ {[%emt 0:03:35]} Kd3 {[%emt 0:00:04] [#]} 44. Rc8 {[%emt 0:00:10]} (44. Rf4 $1 $16) 44... Kd4 {[%emt 0:00:19]} 45. Rc4+ {[%emt 0:01:06] Weighted Error Value: White=0.08 (flawless) /Black=0.03 (flawless)} 1/2-1/2

[Event "Romanian Superleague 2022"]
[Site "Oradea"]
[Date "2022.09.24"]
[Round "4.4"]
[White "Vedmediuc, Serghei"]
[Black "Cosma, Ioan"]
[Result "1/2-1/2"]
[ECO "B48"]
[WhiteElo "2430"]
[BlackElo "2367"]
[Annotator "TA"]
[PlyCount "51"]
[EventDate "2022.09.21"]
[EventType "team-tourn"]
[EventCountry "ROU"]
[SourceTitle "playchess.com"]
[Source "ChessBase"]
[SourceQuality "1"]
[TimeControl "40/5400+30:1800+30"]

{[%evp 11,51,26,42,19,30,23,43,13,31,41,22,31,43,36,45,39,39,39,39,31,61,55,40,51,29,46,47,34,51,23,41,33,45,28,30,33,32,27,20,18,20,0]} 1. e4 {[%emt 0:00:07]} c5 {[%emt 0:00:11]} 2. Nf3 {[%emt 0:00:20]} Nc6 {[%emt 0:00:10]} 3. d4 {[%emt 0:00:36]} cxd4 {[%emt 0:00:07]} 4. Nxd4 {[%emt 0:00:07]} Qc7 {[%emt 0:00:08]} 5. Nc3 {[%emt 0:01:48]} e6 {[%emt 0:00:11]} 6. Be3 {[%emt 0:02:45]} a6 {[%emt 0:00:14]} 7. Qf3 {[%emt 0:00:28] B48: Sicilian: Taimanov: 5 Nc3 Qc7 6 Be3 a6 without Be2.} Bd6 {[%emt 0:01:57]} 8. O-O-O {[%emt 0:00:21]} Be5 $1 {[%emt 0:00:07]} 9. g3 {[%emt 0:00:51] White is slightly better.} Nge7 {[%emt 0:04:38]} 10. Qe2 {[%emt 0:16:40]} b5 {[%emt 0:08:38]} 11. f4 {[%emt 0:01:56] [#] Threatens to win with Nxc6.} Bxd4 {[%emt 0:01:49]} 12. Bxd4 {[%emt 0:00:03]} b4 {[%emt 0:01:30]} 13. Na4 {[%emt 0:05:24]} ({Of course not} 13. Bxg7 Rg8 14. Bf6 bxc3 15. Bxc3 Qb6 $11) 13... Nxd4 {[%emt 0:01:07]} 14. Rxd4 {[%emt 0:00:04]} a5 {[%emt 0:00:52]} 15. Qc4 {[%emt 0:11:01] [#]} Qc6 $146 {[%emt 0:11:13]} ({Predecessor:} 15... Ra7 16. Qxc7 Rxc7 17. Bb5 O-O 18. Nb6 d5 19. exd5 exd5 20. Nxc8 Rfxc8 21. Ba4 g6 {0-1 (51) Papakonstantinou,D (2333)-Kalogeris,I (2319) Thessaloniki 2018}) 16. Qxc6 {[%emt 0:03:53] White is more active.} Nxc6 {[%emt 0:00:11]} 17. Rd2 {[%emt 0:00:07]} Ke7 {[%emt 0:09:34]} 18. Bb5 {[%emt 0:02:05]} Nb8 {[%emt 0:06:01]} 19. Rhd1 {[%emt 0:15:04]} Ra7 {[%emt 0:00:24]} 20. b3 {[%emt 0:00:36]} Rd8 {[%emt 0:03:56]} 21. Kb2 {[%emt 0:22:15]} Rc7 {[%emt 0:14:19]} 22. c3 {[%emt 0:06:58]} bxc3+ {[%emt 0:04:39]} 23. Nxc3 {[%emt 0:00:02]} Ba6 {[%emt 0:02:04]} 24. a4 {[%emt 0:01:25]} Bb7 {[%emt 0:04:47]} 25. Bc4 {[%emt 0:00:05]} d6 {[%emt 0:02:46]} 26. Nb5 {[%emt 0:02:50] Weighted Error Value: White=0.07 (flawless) /Black=0.04 (flawless)} 1/2-1/2

[Event "Romanian Superleague 2022"]
[Site "Oradea"]
[Date "2022.09.24"]
[Round "4.5"]
[White "Itkis, Boris"]
[Black "Manea, Alexandru"]
[Result "1/2-1/2"]
[ECO "D10"]
[WhiteElo "2332"]
[BlackElo "2326"]
[Annotator "TA"]
[PlyCount "59"]
[EventDate "2022.09.21"]
[EventType "team-tourn"]
[EventCountry "ROU"]
[SourceTitle "playchess.com"]
[Source "ChessBase"]
[SourceQuality "1"]
[TimeControl "40/5400+30:1800+30"]

{[%evp 10,59,21,36,79,72,90,81,87,85,86,69,92,80,97,64,98,97,92,88,101,81,98,91,89,47,55,58,52,39,66,22,37,36,57,0,0,0,102,100,102,102,124,125,129,93,94,79,73,62,80,11]} 1. d4 {[%emt 0:00:07][%cal Bd2d4,Bd4d5][%mdl 32]} d5 {[%emt 0:00:15]} 2. c4 {[%emt 0:00:09]} c6 {[%emt 0:00:11][%cal Bc7c6,Bc6d5][%mdl 32]} 3. cxd5 {[%emt 0:01:21]} cxd5 {[%emt 0:00:17]} 4. Nc3 {[%emt 0:00:09]} Nc6 {[%emt 0:00:05]} 5. e4 dxe4 {[%emt 0:07:35]} 6. d5 {[%emt 0:01:35] Hoping for Qa4.} Ne5 {[%emt 0:00:06] D10: Slav Defence: 3 cxd5 (without early Nf3) and 3 Nc3.} 7. Qa4+ $1 {[%emt 0:04:44]} ({Much worse is} 7. Nxe4 e6 $11) 7... Bd7 {[%emt 0:02:58]} 8. Qxe4 {[%emt 0:00:10]} Ng6 {[%emt 0:00:06]} 9. Bc4 {[%emt 0:00:17] White has more active pieces.} Nf6 {[%emt 0:00:24][%cal Bg8f6,Bf6d7,Bd7e5,Be5c4][%mdl 32] [#]} 10. Qe2 {[%emt 0:00:09] [#]} Bg4 $146 {[%emt 0:21:07]} ({Predecessor:} 10... a6 11. Nf3 Qc7 12. O-O Rc8 13. Bb3 b5 14. a3 Qb7 15. Re1 Rxc3 16. bxc3 Nxd5 {0-1 (40) Osmak,I (2438)-Salinas Herrera,P (2514) Chess.com INT 2020}) 11. Bb5+ {[%emt 0:03:30]} Bd7 {[%emt 0:00:08]} 12. Nf3 {[%emt 0:00:05]} Bxb5 {[%emt 0:01:14]} 13. Qxb5+ {[%emt 0:00:05]} Qd7 {[%emt 0:00:05]} 14. Qxd7+ {[%emt 0:04:30]} Nxd7 {[%emt 0:03:32]} 15. O-O {[%emt 0:04:04] aiming for Nb5.} Nge5 {[%emt 0:00:32]} 16. Nxe5 {[%emt 0:00:42]} Nxe5 {[%emt 0:00:01]} 17. Be3 {[%emt 0:07:44][%cal Bc1e3,Be3d4,Bd4e5][%mdl 32] Threatens to win with Nb5.} Nc4 {[%emt 0:01:05]} 18. Bd4 {[%emt 0:00:40]} Nd6 {[%emt 0:00:04] Inhibits Nb5.} 19. Rac1 {[%emt 0:00:37]} h5 {[%emt 0:00:37]} 20. Be5 {[%emt 0:04:35]} Kd8 {[%emt 0:02:19]} 21. Rfe1 {[%emt 0:10:09][%cal Bf1e1,Be1e4,Be4f4,Bf4c4][%mdl 32]} Rh6 {[%emt 0:02:19]} 22. Ne4 {[%emt 0:05:41]} (22. h4 $14) 22... Nxe4 $11 {[%emt 0:07:20]} 23. Rxe4 {[%emt 0:00:07]} Rc8 {[%emt 0:00:03]} (23... Ra6 $1 $11 {remains equal.}) 24. Rxc8+ $16 {[%emt 0:02:42]} Kxc8 {[%emt 0:00:01][%mdl 4096] Endgame KRB-KRB} 25. Rf4 {[%emt 0:01:06]} f6 {[%emt 0:00:29]} 26. Rc4+ {[%emt 0:00:08]} Kd8 {[%emt 0:07:58]} 27. Bf4 {[%emt 0:03:55]} Rg6 {[%emt 0:05:55]} 28. Kf1 {[%emt 0:09:28]} f5 {[%emt 0:00:10]} 29. a4 {[%emt 0:06:21]} Ra6 {[%emt 0:01:22] [#]} 30. Ke2 {[%emt 0:07:57] Weighted Error Value: White=0.09 (flawless) /Black=0.13 (very precise)} ({White should play} 30. b3 $1 $16) 1/2-1/2

[Event "Romanian Superleague 2022"]
[Site "Oradea"]
[Date "2022.09.24"]
[Round "4.6"]
[White "Antonica, Dragos-Andrei"]
[Black "Bulau, Andrei-Cristian"]
[Result "1/2-1/2"]
[ECO "A12"]
[WhiteElo "2321"]
[BlackElo "2183"]
[Annotator "TA"]
[PlyCount "34"]
[EventDate "2022.09.21"]
[EventType "team-tourn"]
[EventCountry "ROU"]
[SourceTitle "playchess.com"]
[Source "ChessBase"]
[SourceQuality "1"]
[TimeControl "40/5400+30:1800+30"]

{[%evp 9,34,14,31,0,-2,-10,0,-2,22,-12,-12,-4,-2,-13,-5,-14,-8,-7,-7,-26,0,-1,8,-11,-2,-5,0]} 1. Nf3 {[%emt 0:00:05]} d5 {[%emt 0:00:33]} 2. c4 {[%emt 0:00:15]} c6 {[%emt 0:01:06]} 3. b3 {[%emt 0:00:36]} Nf6 {[%emt 0:02:09][%cal Bg8f6,Bf6e4,Be4c3][%mdl 32]} 4. Bb2 {[%emt 0:01:04]} Nbd7 {[%emt 0:00:14]} 5. g3 {[%emt 0:01:57]} g6 {[%emt 0:01:14]} 6. Nc3 {[%emt 0:07:18] A12: English Opening: 1...c6 with b3 by White.} Bg7 {[%emt 0:02:12]} 7. Bg2 {[%emt 0:08:28]} O-O {[%emt 0:00:28]} 8. O-O {[%emt 0:00:31]} Ne4 {[%emt 0:03:23]} 9. Qc2 {[%emt 0:09:24]} Nxc3 $1 {[%emt 0:02:35]} 10. Bxc3 {[%emt 0:00:18]} e5 {[%emt 0:01:45]} 11. cxd5 {[%emt 0:02:22]} cxd5 {[%emt 0:00:08]} 12. d3 {[%emt 0:03:41]} Re8 {[%emt 0:11:44]} 13. Rac1 {[%emt 0:20:28]} Nb6 {[%emt 0:05:10] [#]} 14. e4 $146 {[%emt 0:03:24]} ({Predecessor:} 14. Ba5 Be6 15. Qc7 Qxc7 16. Rxc7 e4 17. dxe4 dxe4 18. Ng5 Bd5 19. f3 Be5 20. Rc2 exf3 21. Bxf3 {1-0 (52) Gunnarsson,A (2135)-Trujillo,O (2270) Philadelphia 1995}) 14... d4 {[%emt 1:04:49]} 15. Ba5 {[%emt 0:38:09] The position is equal.} Bd7 {[%emt 0:00:30]} 16. Nd2 {[%emt 0:00:30]} Rc8 {[%emt 0:00:30]} 17. Nc4 {[%emt 0:00:00]} Qe7 {[%emt 0:00:00] An even fight not without its subleties.  Weighted Error Value: White=0.12 (very precise) /Black=0.07 (flawless)} 1/2-1/2

[Event "Romanian Superleague 2022"]
[Site "Oradea"]
[Date "2022.09.24"]
[Round "4.7"]
[White "Nguyen, Thai Dai Van"]
[Black "Deac, Bogdan-Daniel"]
[Result "1-0"]
[ECO "E04"]
[WhiteElo "2627"]
[BlackElo "2710"]
[Annotator "TA"]
[PlyCount "85"]
[EventDate "2022.09.21"]
[EventType "team-tourn"]
[EventCountry "ROU"]
[SourceTitle "playchess.com"]
[Source "ChessBase"]
[SourceQuality "1"]
[TimeControl "40/5400+30:1800+30"]

{[%evp 14,85,25,14,16,22,13,18,20,15,23,22,28,36,35,30,67,61,71,39,120,55,105,104,152,143,139,135,135,138,241,154,150,150,152,153,167,152,152,149,172,164,152,141,135,137,141,139,156,140,125,33,37,35,65,63,266,0,0,0,272,112,116,29,106,111,581,579,570,464,545,550,733,717]} 1. d4 {[%emt 0:02:01]} Nf6 {[%emt 0:00:03]} 2. c4 {[%emt 0:00:10]} e6 {[%emt 0:00:03]} 3. Nf3 {[%emt 0:00:09]} d5 {[%emt 0:00:16]} 4. g3 {[%emt 0:00:11]} dxc4 {[%emt 0:06:18]} 5. Bg2 {[%emt 0:00:14]} Bd7 {[%emt 0:00:03]} 6. Ne5 {[%emt 0:02:06]} Bc6 {[%emt 0:00:37]} 7. Nxc6 {[%emt 0:00:11]} Nxc6 {[%emt 0:00:03]} 8. O-O {[%emt 0:01:21]} Qd7 {[%emt 0:00:33] E04: Open Catalan: 5 Nf3.} 9. e3 {[%emt 0:02:18][%mdl 1024] White has compensation.} Rd8 {[%emt 0:00:49]} 10. Qc2 $1 {[%emt 0:01:34][%mdl 4] outshines the older 10.Qe2.} b5 {[%emt 0:02:47] The position is equal.} 11. b3 {[%emt 0:00:44]} Nb4 {[%emt 0:00:47]} 12. Qe2 {[%emt 0:00:15]} cxb3 {[%emt 0:26:35]} 13. axb3 {[%emt 0:00:28]} c6 {[%emt 0:00:24] [#]} 14. Nd2 $146 {[%emt 0:01:35]} ({Predecessor:} 14. Bd2 Be7 15. Bxb4 Bxb4 16. Rc1 Nd5 17. Ra6 O-O 18. Raxc6 Rb8 19. Qb2 Rfc8 20. Rxc8+ Rxc8 {0-1 (38) Gleizerov,E (2498)-Grachev,B (2621) Riga 2019}) 14... Nbd5 {[%emt 0:07:07]} 15. Nf3 {[%emt 0:11:50]} Qb7 {[%emt 0:02:21]} 16. Qa2 {[%emt 0:31:36]} Rd7 {[%emt 0:01:30]} (16... Ra8 $1 $14) 17. Bd2 {[%emt 0:02:08]} ({White should play} 17. Ne5 $16 Rc7 18. Bd2) 17... Rc7 {[%emt 0:02:53]} ({Black should try} 17... Ne4 $1 $14) 18. Rfc1 {[%emt 0:01:31]} Bb4 {[%emt 0:12:38]} (18... Bd6 $142) 19. Bxb4 $16 {[%emt 0:02:33]} Nxb4 {[%emt 0:00:15]} 20. Qa3 {[%emt 0:02:11]} Nbd5 {[%emt 0:00:19][%cal Od5c3]} 21. Ne5 {[%emt 0:00:06][%cal Bf3e5,Be5d3,Bd3f4][%mdl 32] Strongly threatening Qd6.} Nd7 {[%emt 0:00:47]} (21... Ne7 $16 {might work better.}) 22. Bxd5 {[%emt 0:04:08]} exd5 {[%emt 0:03:26]} 23. Qd6 {[%emt 0:00:42]} Nb8 {[%emt 0:03:22]} 24. Nd3 $1 {[%emt 0:13:53][%cal Oe3e4] Black must now prevent e4! White is much more active.} h5 {[%emt 0:12:28]} 25. Nf4 {[%emt 0:03:18]} h4 {[%emt 0:06:53]} 26. Qe5+ {[%emt 0:00:48]} Kf8 {[%emt 0:00:21]} 27. Qd6+ {[%emt 0:00:04]} Ke8 {[%emt 0:00:17] [#]} 28. Nxd5 $1 {[%emt 0:04:43][%mdl 512]} Rd7 {[%emt 0:00:17]} 29. Qe5+ {[%emt 0:00:04]} Kf8 {[%emt 0:00:04]} 30. Nf4 {[%emt 0:00:05]} hxg3 {[%emt 0:00:25]} 31. hxg3 {[%emt 0:00:53]} ({Resist} 31. fxg3 Rh6 $16) 31... Rh6 {[%emt 0:00:31]} 32. d5 {[%emt 0:07:16]} (32. Qg5 $16) 32... a6 $1 $14 {[%emt 0:02:32][%cal Rc6d5]} 33. e4 {[%emt 0:00:26]} Re7 {[%emt 0:01:12]} 34. Qf5 {[%emt 0:02:51] Threatens to win with e5.} Rf6 $2 {[%emt 0:02:48]} (34... Qd7 $14) 35. Qh7 {[%emt 0:00:02][%cal Rh7h8]} Rh6 {[%emt 0:00:06]} 36. Qf5 {[%emt 0:00:02]} Rf6 {[%emt 0:00:57] [#] Against Ne6+} 37. Qg4 {[%emt 0:00:57]} (37. Qh7 Rh6 38. Qf5 $16) (37. dxc6 $1 $18 Nxc6 38. Qc5) 37... Kg8 {[%emt 0:03:57]} 38. Re1 $40 {[%emt 0:01:18][%mdl 128] Black needs to defend precisely.} (38. dxc6 $16 Rxc6 39. Nh5) 38... Rh6 {[%emt 0:00:53]} (38... Nd7 $1 $11 {keeps the balance.}) 39. Rac1 $16 {[%emt 0:00:34] e5 is the strong threat.} Nd7 {[%emt 0:01:30][%mdl 8192] [#]} (39... Re5 $16 {is more resistant.}) 40. Nh5 $1 $18 {[%emt 0:00:00][%csl Gh5][%cal Rg4g7] White is clearly winning.} Rg6 {[%emt 0:00:00]} 41. dxc6 {[%emt 0:03:41]} Qxc6 {[%emt 0:02:15]} 42. Qh4 {[%emt 0:01:24]} ({Weaker is} 42. Rxc6 Rxg4 43. Rc8+ (43. Rxa6 Rgxe4 44. Rxe4 Rxe4 $11) 43... Kh7 $14) 42... Qd6 {[%emt 0:05:41]} 43. Red1 {[%emt 0:01:08] Weighted Error Value: White=0.26 (precise) /Black=0.40} 1-0

[Event "Romanian Superleague 2022"]
[Site "Oradea"]
[Date "2022.09.24"]
[Round "4.8"]
[White "Miroshnichenko, Evgenij"]
[Black "Nisipeanu, Liviu-Dieter"]
[Result "1/2-1/2"]
[ECO "E06"]
[WhiteElo "2597"]
[BlackElo "2633"]
[Annotator "TA"]
[PlyCount "34"]
[EventDate "2022.09.21"]
[EventType "team-tourn"]
[EventCountry "ROU"]
[SourceTitle "playchess.com"]
[Source "ChessBase"]
[SourceQuality "1"]
[TimeControl "40/5400+30:1800+30"]

{[%evp 12,34,22,14,26,30,19,30,14,16,23,14,19,16,34,27,23,0,0,0,0,0,0,0,0]} 1. d4 {[%emt 0:00:07]} Nf6 {[%emt 0:00:13]} 2. c4 {[%emt 0:00:06]} e6 {[%emt 0:00:04]} 3. Nf3 {[%emt 0:00:16][%cal Bg1f3,Bf3d2,Bd2b1,Bb1c3][%mdl 32]} d5 {[%emt 0:00:49]} 4. g3 {[%emt 0:00:07]} Be7 {[%emt 0:00:05]} 5. Bg2 {[%emt 0:00:06]} O-O {[%emt 0:00:05]} 6. Nc3 {[%emt 0:01:37]} c6 {[%emt 0:00:17]} 7. O-O {[%emt 0:01:37]} a5 {[%emt 0:00:05] E06: Closed Catalan: Early deviations.} 8. Nd2 {[%emt 0:09:24]} b5 {[%emt 0:01:30]} 9. cxb5 {[%emt 0:05:22]} cxb5 {[%emt 0:00:08] White has an edge.} 10. Nxb5 {[%emt 0:00:13]} Qb6 {[%emt 0:01:11]} 11. a4 {[%emt 0:00:21]} Nc6 {[%emt 0:01:02]} 12. Nb1 {[%emt 0:09:58]} Ba6 {[%emt 0:00:09]} 13. N1c3 {[%emt 0:00:12] [#]} Na7 $146 {[%emt 0:02:13][%cal Ra7b5]} ({Predecessor:} 13... Bb4) 14. Nxa7 {[%emt 0:09:19]} Rxa7 {[%emt 0:05:01] The position is equal.} 15. Re1 {[%emt 0:00:08]} Rc8 {[%emt 0:10:31]} 16. e3 {[%emt 0:04:47]} h6 {[%emt 0:05:22]} 17. Bf1 {[%emt 0:16:31]} Bb4 {[%emt 0:09:02] A rather calm draw.  Weighted Error Value: White=0.03 (flawless) /Black=0.03 (flawless)} 1/2-1/2